bitfinex/quotes_SOLUSD_20251231
["timestamp","ask_amount","ask_price","bid_price","bid_amount"]
[1767190488837,5.55207052,127.14,127.11,69.81714867]
[1767190489038,5.55207052,127.14,127.11,0.72]
[1767190489551,5.55207052,127.14,127.11,8.58710619]
[1767190490254,5.55207052,127.14,127.11,0.72]
[1767190495856,0.72,127.14,127.11,0.72]
[1767190496055,5.55207052,127.14,127.11,0.72]
[1767190496457,3.81430651,127.14,127.11,0.72]
[1767190497629,0.72,127.14,127.11,0.72]
[1767190497853,3.81430651,127.14,127.11,0.72]
[1767190498039,0.69,127.13,127.1,7.86766036]
[1767190498460,3.09430651,127.12,127.1,0.69]
[1767190498634,0.69,127.13,127.09,0.69]
[1767190498836,3.78430651,127.13,127.09,8.55832602]
[1767190499038,3.09430651,127.12,127.09,8.55832602]
[1767190499436,3.78430651,127.13,127.09,8.55832602]
[1767190499638,3.78430651,127.13,127.09,11.65263253]
[1767190500159,0.69,127.13,127.09,10.96263253]
[1767190500371,15.05,127.15,127.11,0.69]
[1767190500575,8.98817262,127.14,127.11,0.69]
[1767190500881,6.58386109,127.13,127.1,0.69]
[1767190501086,3.78430651,127.13,127.1,0.69]
[1767190501261,0.69,127.13,127.1,0.69]
[1767190502190,3.09430651,127.14,127.07,61.92]
[1767190502371,3.09430651,127.11,127.08,0.69]
[1767190502684,3.78430651,127.11,127.08,0.69]
[1767190503581,3.09430651,127.11,127.08,8.55898511]
[1767190503876,17.45430651,127.14,127.08,8.55898511]
[1767190503877,14.36,127.14,127.09,3.09430651]
[1767190504078,9.67988112,127.13,127.09,3.78430651]
[1767190504286,5.89557461,127.12,127.09,3.78430651]
[1767190504584,5.89557461,127.11,127.09,3.78430651]
[1767190504783,3.78430651,127.13,127.09,3.78430651]
[1767190504983,5.89523633,127.12,127.09,3.78430651]
[1767190505172,5.89523633,127.11,127.09,0.69]
[1767190505484,0.69,127.12,127.09,0.69]
[1767190505683,5.89507738,127.11,127.09,0.69]
[1767190505882,3.78430651,127.12,127.09,0.69]
[1767190506077,5.89507738,127.11,127.09,0.69]
[1767190506280,3.78430651,127.12,127.09,0.69]
[1767190506969,19.6591486,127.17,127.09,0.69]
[1767190506970,0.69,127.17,127.11,0.69]
[1767190507158,0.69,127.15,127.11,3.78430651]
[1767190507354,5.89408585,127.14,127.11,0.69]
[1767190507687,6.58408585,127.14,127.11,0.69]
[1767190507884,5.89408585,127.13,127.11,0.69]
[1767190508464,8.98839236,127.13,127.11,0.69]
[1767190508664,5.89408585,127.12,127.11,0.69]
[1767190509488,5.89408585,127.13,127.11,0.69]
[1767190510774,3.78430651,127.12,127.08,77.16]
[1767190510966,3.78430651,127.12,127.08,3.78430651]
[1767190511371,3.78430651,127.12,127.08,0.69]
[1767190511661,3.78430651,127.12,127.09,0.69]
[1767190512184,34.01929984,127.17,127.09,3.09430651]
[1767190512383,6.61019657,127.18,127.12,0.69]
[1767190512384,3.09430651,127.15,127.12,0.69]
[1767190512595,5.89361394,127.14,127.12,3.78430651]
[1767190512793,0.69,127.16,127.12,3.09430651]
[1767190513089,0.69,127.22,127.16,0.69]
[1767190513285,0.1,127.23,127.13,14.36]
[1767190513286,0.69,127.21,127.17,0.69]
[1767190513492,0.69,127.22,127.14,0.69]
[1767190513703,3.78430651,127.2,127.16,3.78430651]
[1767190513863,3.78430651,127.2,127.16,0.69]
[1767190514185,0.1,127.23,127.16,0.69]
[1767190514186,3.09430651,127.19,127.16,0.69]
[1767190514390,3.78430651,127.17,127.13,0.69]
[1767190514564,3.09430651,127.16,127.13,0.69]
[1767190515083,0.69,127.17,127.13,10.95989605]
[1767190515288,0.69,127.22,127.16,3.09430651]
[1767190515460,3.78430651,127.18,127.15,0.69]
[1767190515864,0.69,127.18,127.15,0.69]
[1767190516283,0.69,127.18,127.15,8.55464194]
[1767190516480,0.69,127.18,127.15,0.69]
[1767190516789,3.78430651,127.18,127.15,0.69]
[1767190517575,3.78430651,127.16,127.12,3.78430651]
[1767190517772,0.69,127.16,127.12,0.69]
[1767190517979,3.78430651,127.16,127.12,11.65071159]
[1767190518361,3.78430651,127.15,127.11,25.32127137]
[1767190518673,3.81430651,127.14,127.11,22.89696486]
[1767190518987,3.81430651,127.14,127.11,8.53696486]
[1767190519486,3.09430651,127.14,127.11,8.53696486]
[1767190519789,3.81430651,127.15,127.11,11.63127137]
[1767190520363,0.72,127.15,127.11,11.63127137]
[1767190520590,0.72,127.15,127.11,8.53696486]
[1767190520790,0.72,127.14,127.11,11.63127137]
[1767190521168,3.81430651,127.14,127.11,8.53696486]
[1767190522469,3.81430651,127.14,127.11,0.67]
[1767190523063,3.81430651,127.13,127.09,8.55821872]
[1767190523268,14.36,127.18,127.05,0.69]
[1767190523269,0.72,127.09,127.05,0.69]
[1767190523487,0.72,127.13,127.05,3.09430651]
[1767190523667,0.72,127.11,127.07,3.78430651]
[1767190524164,0.72,127.11,127.08,3.09430651]
[1767190524378,0.72,127.11,127.08,3.78430651]
[1767190524890,0.72,127.11,127.08,11.65309916]
[1767190525096,0.72,127.11,127.08,8.55879265]
[1767190525293,0.72,127.1,127.07,3.09430651]
[1767190525591,3.81430651,127.12,127.07,11.65392638]
[1767190525796,0.72,127.11,127.07,11.65392638]
[1767190526292,0.72,127.11,127.08,3.09430651]
[1767190527282,0.72,127.11,127.07,8.55961987]
[1767190527482,0.72,127.11,127.08,3.09430651]
[1767190527883,0.72,127.11,127.07,8.55961987]
[1767190528199,0.72,127.11,127.08,3.09430651]
[1767190529303,3.81430651,127.11,127.07,11.65392638]
[1767190531501,14.38,127.13,127.05,22.92060177]
[1767190531502,3.81430651,127.09,127.05,22.92060177]
[1767190531684,22.24605746,127.13,127.04,8.56126972]
[1767190531685,3.81430651,127.08,127.04,8.56126972]
[1767190531878,0.72,127.07,127.04,8.56126972]
[1767190532083,3.81430651,127.07,127.04,8.56126972]
[1767190532278,3.81430651,127.07,127.03,11.16635811]
[1767190532487,3.09430651,127.07,127.04,0.69]
[1767190532691,3.09430651,127.08,127.04,3.78430651]
[1767190532892,3.81430651,127.08,127.04,3.78430651]
[1767190533090,3.09430651,127.07,127.04,0.69]
[1767190533407,0.72,127.06,127.03,0.2]
[1767190533605,3.81430651,127.06,127.03,0.2]
[1767190534225,3.81430651,127.04,127.01,0.2]
[1767190534588,3.81430651,127.04,127.01,8.07331591]
[1767190534979,14.38,127.09,127.01,3.98430651]
[1767190535196,0.72,127.05,127.02,10.9670352]
[1767190535684,0.72,127.05,127.02,3.09430651]
[1767190536006,3.09430651,127.04,127.01,0.89]
[1767190536184,3.81430651,127.04,127.01,0.2]
[1767190536978,0.72,127.04,127.01,11.16766067]
[1767190537181,0.72,127.04,127.01,11.85766067]
[1767190539302,3.81430651,127.05,127.01,8.76335416]
[1767190539609,0.72,127.05,127.01,11.85766067]
[1767190539907,3.81430651,127.05,127.01,11.85766067]
[1767190540285,3.81430651,127.07,127.03,3.78430651]
[1767190540505,0.72,127.06,127.03,3.78430651]
[1767190540688,0.72,127.06,127.03,0.69]
[1767190540890,0.72,127.06,127.03,3.78430651]
[1767190541188,0.72,127.05,127.02,10.96697156]
[1767190541393,3.81430651,127.05,127.01,11.85739088]
[1767190541907,0.72,127.04,127.01,0.89]
[1767190542317,0.72,127.04,127.01,3.98430651]
[1767190542994,0.72,127.04,127.01,11.85761679]
[1767190544419,0.72,127.05,127.01,11.85761679]
[1767190544722,3.09430651,127.05,127.01,11.85761679]
[1767190545012,0.72,127.04,127.01,11.85761679]
[1767190545309,0.72,127.06,127.03,3.09430651]
[1767190545493,0.72,127.06,127.04,3.09430651]
[1767190545813,3.09430651,127.08,127.04,3.09430651]
[1767190546112,3.09430651,127.08,127.01,27.75679976]
[1767190546113,0.72,127.09,127.06,3.09430651]
[1767190546322,3.09430651,127.11,127.06,8.55996754]
[1767190546496,0.72,127.1,127.07,3.09430651]
[1767190546893,0.72,127.09,127.06,8.55996754]
[1767190547202,0.72,127.09,127.06,11.65427405]
[1767190547404,0.72,127.09,127.06,3.78430651]
[1767190548199,0.72,127.09,127.06,11.65458788]
[1767190548607,0.72,127.09,127.07,3.09430651]
[1767190549240,3.81430651,127.11,127.07,3.09430651]
[1767190549424,0.72,127.1,127.07,3.09430651]
[1767190549607,0.72,127.1,127.06,8.56028137]
[1767190549806,0.72,127.1,127.07,3.09430651]
[1767190551308,3.81430651,127.1,127.06,11.65458788]
[1767190552422,0.72,127.1,127.06,11.65458788]
[1767190553032,3.81430651,127.1,127.06,11.65458788]
[1767190554124,0.72,127.1,127.07,3.76430651]
[1767190554305,0.66,127.12,127.08,3.76430651]
[1767190554500,0.66,127.12,127.08,0.67]
[1767190554723,0.66,127.12,127.08,3.76430651]
[1767190555425,0.66,127.12,127.08,11.63314145]
[1767190556224,3.75430651,127.12,127.08,0.67]
[1767190556426,3.09430651,127.12,127.08,0.67]
[1767190556613,3.09430651,127.11,127.07,0.67]
[1767190556926,3.09430651,127.14,127.05,8.54058788]
[1767190556927,3.75430651,127.09,127.05,8.54058788]
[1767190557114,3.75430651,127.09,127.05,0.67]
[1767190557725,3.09430651,127.08,127.03,7.87195299]
[1767190557912,3.75430651,127.07,127.03,8.54195299]
[1767190558504,5.50045997,127.06,127.03,0.67]
[1767190558926,5.50045997,127.05,127.01,0.87]
[1767190559507,5.50045997,127.05,127.01,8.74337162]
[1767190563147,0.66,127.05,127.01,12.91383159]
[1767190563319,5.50045997,127.06,127.03,0.67]
[1767190563523,5.50045997,127.05,127.01,8.74337162]
[1767190566535,4.84045997,127.04,127.01,0.87]
[1767190566707,5.50045997,127.03,127.01,0.2]
[1767190568146,5.50045997,127.02,127.0,0.2]
[1767190568525,4.84045997,127.01,127.0,0.2]
[1767190568711,0.66,127.02,127.0,0.2]
[1767190569112,5.50045997,127.02,127.0,0.2]
[1767190569930,4.84045997,127.01,127.0,0.2]
[1767190570442,4.84045997,127.01,126.98,0.2]
[1767190570443,5.50045997,127.01,126.98,0.2]
[1767190570809,54.2730264,127.09,126.98,0.2]
[1767190570810,24.51418889,127.08,126.98,0.2]
[1767190571020,4.84045997,127.03,126.99,0.67]
[1767190571312,5.87644625,127.02,126.98,63.67]
[1767190571518,5.87613734,127.01,126.98,63.67]
[1767190571716,5.50045997,127.02,126.98,70.87520274]
[1767190571926,5.87614029,127.01,126.98,71.54520274]
[1767190572134,4.84045997,127.01,126.98,63.67]
[1767190572534,4.84045997,127.01,126.98,71.5452372]
[1767190572842,5.50045997,127.02,126.98,71.5452372]
[1767190573036,5.87639335,127.01,126.98,71.5452372]
[1767190573227,5.50045997,127.02,126.98,71.5452372]
[1767190573538,6.53544708,127.01,126.98,71.54519503]
[1767190573734,0.66,127.03,126.99,0.67]
[1767190573932,5.87537359,127.02,127.0,0.67]
[1767190574134,4.84045997,127.03,127.0,0.67]
[1767190574318,5.8747928,127.02,127.0,0.67]
[1767190574644,0.66,127.0,126.98,0.2]
[1767190574825,4.84045997,126.99,126.97,0.2]
[1767190575540,14.38,127.01,126.96,0.2]
[1767190575541,5.50045997,126.98,126.96,0.2]
[1767190575750,4.84045997,126.97,126.96,0.2]
[1767190576238,4.84045997,126.97,126.94,0.67]
[1767190576941,4.84045997,126.96,126.94,0.67]
[1767190577142,4.84045997,126.96,126.92,8.54885032]
[1767190577347,4.84045997,126.95,126.92,0.67]
[1767190577756,4.84045997,126.94,126.9,390.67]
[1767190577930,4.84045997,126.93,126.9,390.67]
[1767190578327,0.66,126.94,126.9,390.67]
[1767190578639,4.84045997,126.93,126.9,390.67]
[1767190579627,4.84045997,126.93,126.9,390.0]
[1767190579835,5.54045997,126.93,126.9,390.0]
[1767190581046,4.84045997,126.92,126.9,390.0]
[1767190581547,4.84045997,126.91,126.9,390.0]
[1767190581752,5.16045997,126.91,126.9,236.55063926]
[1767190581933,5.16045997,126.91,126.9,211.28020155]
[1767190582253,0.32,126.95,126.9,211.28020155]
[1767190582552,19.22045997,126.94,126.9,216.82066152]
[1767190582751,4.84045997,126.93,126.9,211.98020155]
[1767190583056,19.22045997,126.94,126.9,211.98020155]
[1767190583261,19.22045997,126.94,126.9,219.86026415]
[1767190583455,19.22045997,126.94,126.9,211.98020155]
[1767190583652,4.84045997,126.94,126.9,211.98020155]
[1767190583849,5.16045997,126.94,126.9,216.82066152]
[1767190584454,5.16045997,126.94,126.9,211.98020155]
[1767190584650,5.16045997,126.94,126.9,216.82066152]
[1767190584957,4.84045997,126.94,126.9,211.98020155]
[1767190585949,4.84045997,126.93,126.9,211.98020155]
[1767190586150,4.84045997,126.92,126.9,211.98020155]
[1767190586455,14.38,126.93,126.9,211.98020155]
[1767190586844,19.22045997,126.93,126.9,211.98020155]
[1767190587769,4.84045997,126.91,126.9,58.23084081]
[1767190587946,22.25873182,126.93,126.89,0.2]
[1767190588142,4.84045997,126.9,126.89,0.2]
[1767190588747,14.38,126.91,126.89,0.2]
[1767190588947,19.22045997,126.91,126.89,0.2]
[1767190589351,4.84045997,126.9,126.89,0.2]
[1767190589550,4.84045997,126.91,126.89,0.2]
[1767190589849,4.84045997,126.9,126.88,0.2]
[1767190590054,4.84045997,126.89,126.85,0.2]
[1767190590255,4.84045997,126.86,126.82,0.7]
[1767190590445,4.84045997,126.9,126.82,0.7]
[1767190590649,4.84045997,126.85,126.82,0.7]
[1767190590853,14.38,126.89,126.82,0.7]
[1767190591064,4.84045997,126.88,126.83,4.84045997]
[1767190591286,14.4,126.87,126.84,0.7]
[1767190591573,14.4,126.87,126.85,5.54045997]
[1767190591865,13.68,126.87,126.86,5.54045997]
[1767190592069,4.84045997,126.9,126.86,0.7]
[1767190592252,19.24045997,126.92,126.88,4.84045997]
[1767190592570,5.53045997,126.91,126.87,5.54045997]
[1767190593377,4.84045997,126.88,126.84,5.54045997]
[1767190593668,0.69,126.89,126.84,5.54045997]
[1767190593887,4.84045997,126.88,126.84,5.54045997]
[1767190594163,8.57087176,126.89,126.84,5.54045997]
[1767190594343,4.84045997,126.88,126.84,5.54045997]
[1767190594981,4.84045997,126.88,126.78,13.19059834]
[1767190594982,15.09,126.88,126.78,0.7]
[1767190595274,15.09,126.88,126.81,5.54045997]
[1767190595275,5.53045997,126.85,126.81,5.54045997]
[1767190595479,0.69,126.85,126.81,5.54045997]
[1767190595772,5.53045997,126.85,126.81,5.54045997]
[1767190595970,5.53045997,126.85,126.79,7.8866792]
[1767190595971,5.53045997,126.85,126.79,0.7]
[1767190596157,5.53045997,126.85,126.81,4.84045997]
[1767190596352,0.69,126.84,126.81,4.84045997]
[1767190596561,0.69,126.84,126.82,4.84045997]
[1767190597175,4.84045997,126.83,126.78,4.84045997]
[1767190597374,7.88346324,126.85,126.77,4.84045997]
[1767190597375,5.53045997,126.81,126.77,4.84045997]
[1767190598143,0.69,126.81,126.78,4.84045997]
[1767190598359,0.69,126.81,126.76,15.50649401]
[1767190598567,0.69,126.81,126.79,4.84045997]
[1767190598760,0.69,126.81,126.77,8.58827872]
[1767190598977,0.69,126.84,126.8,4.84045997]
[1767190599174,0.69,126.83,126.8,4.84045997]
[1767190599378,0.69,126.85,126.81,4.84045997]
[1767190599554,0.69,126.92,126.83,0.7]
[1767190599749,27.57425352,126.93,126.81,7.88549699]
[1767190599750,0.69,126.89,126.85,4.84045997]
[1767190599948,0.69,126.89,126.87,4.84045997]
[1767190600366,19.93045997,126.91,126.87,4.84045997]
[1767190600652,0.69,126.89,126.82,0.7]
[1767190600851,12.70608663,126.89,126.85,12.01608663]
[1767190601080,0.69,126.89,126.85,12.01608663]
[1767190602182,0.69,126.89,126.86,12.01608663]
[1767190602386,22.2792742,126.92,126.87,12.01608663]
[1767190602585,5.80936307,126.91,126.86,0.7]
[1767190602881,0.69,126.92,126.89,12.01608663]
[1767190603185,6.49890478,126.91,126.87,12.01608663]
[1767190603487,5.80890478,126.9,126.87,12.01608663]
[1767190603851,0.69,126.91,126.88,12.01608663]
[1767190604066,26.41608663,126.93,126.77,15.0]
[1767190604067,12.01608663,126.95,126.9,12.01608663]
[1767190604261,6.50118709,126.94,126.9,12.01608663]
[1767190604478,5.81118709,126.93,126.9,12.01608663]
[1767190604665,6.50118709,126.93,126.9,12.01608663]
[1767190604873,5.81118709,126.92,126.9,12.01608663]
[1767190605072,12.01608663,126.94,126.9,12.71608663]
[1767190605274,5.81354117,126.93,126.9,12.71608663]
[1767190605473,5.81354117,126.92,126.87,0.7]
[1767190605684,5.81354117,126.92,126.88,12.71608663]
[1767190605685,17.8296278,126.92,126.88,12.71608663]
[1767190605980,5.81354117,126.91,126.88,12.71608663]
[1767190606190,12.70608663,126.93,126.88,12.71608663]
[1767190606368,5.81718941,126.92,126.88,12.71608663]
[1767190606567,5.81718941,126.91,126.88,12.71608663]
[1767190606781,0.69,126.93,126.89,12.01608663]
[1767190606968,14.4,126.96,126.9,12.01608663]
[1767190606969,5.81684407,126.92,126.9,12.01608663]
[1767190607171,0.69,126.94,126.9,12.01608663]
[1767190607485,5.81929172,126.93,126.9,12.01608663]
[1767190607683,5.81929172,126.92,126.9,12.01608663]
[1767190607855,0.69,126.94,126.9,12.01608663]
[1767190608052,5.81928968,126.93,126.9,12.01608663]
[1767190608286,5.81928968,126.92,126.9,12.01608663]
[1767190608487,0.69,126.94,126.9,12.01608663]
[1767190608793,5.82216073,126.93,126.9,12.01608663]
[1767190608971,5.82216073,126.92,126.9,12.01608663]
[1767190609170,0.69,126.94,126.9,12.01608663]
[1767190609372,5.82514857,126.93,126.9,12.01608663]
[1767190609683,5.82514857,126.92,126.9,12.01608663]
[1767190609887,0.69,126.94,126.89,0.7]
[1767190610083,5.82499691,126.93,126.9,12.01608663]
[1767190610270,0.69,126.94,126.9,12.01608663]
[1767190610271,5.82499691,126.92,126.9,12.71608663]
[1767190610472,0.69,126.94,126.9,0.7]
[1767190610789,5.82846854,126.93,126.9,0.7]
[1767190610976,5.82846854,126.92,126.9,0.7]
[1767190611179,12.70608663,126.94,126.9,0.7]
[1767190611365,5.83223247,126.93,126.9,0.7]
[1767190611566,5.83223247,126.92,126.9,0.7]
[1767190611786,12.01608663,126.94,126.9,0.7]
[1767190611983,5.8322326,126.93,126.9,0.7]
[1767190612170,5.8322326,126.92,126.9,0.7]
[1767190612375,0.67,126.94,126.9,0.7]
[1767190612577,5.83597232,126.93,126.91,12.01608663]
[1767190612781,12.68608663,126.96,126.91,11.98697382]
[1767190612978,5.83544083,126.95,126.91,11.98697382]
[1767190613190,5.83544083,126.94,126.91,11.98697382]
[1767190613366,5.83544083,126.93,126.91,11.98697382]
[1767190613568,12.68608663,126.96,126.91,12.01608663]
[1767190613768,6.50915399,126.95,126.91,12.01608663]
[1767190613986,5.83915399,126.94,126.91,12.01608663]
[1767190614288,5.83915399,126.93,126.91,12.01608663]
[1767190614490,12.68608663,126.95,126.9,20.56705796]
[1767190614660,5.84193639,126.94,126.9,20.56705796]
[1767190614859,5.84193639,126.93,126.9,20.56705796]
[1767190615098,12.68608663,126.95,126.9,19.89618124]
[1767190615264,5.84499573,126.94,126.91,12.01608663]
[1767190615465,5.84499573,126.93,126.91,12.01608663]
[1767190615666,14.4,126.97,126.92,12.01608663]
[1767190615667,0.67,126.97,126.92,12.01608663]
[1767190615886,0.67,126.97,126.91,7.87959227]
[1767190616090,0.67,126.97,126.93,12.01608663]
[1767190616673,0.67,126.97,126.91,7.87959227]
[1767190616986,0.67,126.97,126.93,12.01608663]
[1767190617196,0.67,126.97,126.91,7.87959227]
[1767190617197,0.67,126.97,126.94,12.01608663]
[1767190618778,0.67,126.97,126.91,27.57859156]
[1767190618978,0.67,126.97,126.95,12.01608663]
[1767190619691,0.67,126.99,126.95,12.01608663]
[1767190619891,0.67,126.99,126.93,14.4]
[1767190620088,0.67,126.99,126.96,12.01608663]
[1767190620296,0.67,126.99,126.95,12.01608663]
[1767190620590,0.67,126.99,126.95,7.38424914]
[1767190621375,0.72,126.97,126.93,7.38424914]
[1767190621570,0.72,126.97,126.93,21.78424914]
[1767190621877,0.72,126.97,126.93,14.4]
[1767190622196,0.72,126.97,126.93,21.78424914]
[1767190622898,0.72,126.96,126.93,14.4]
[1767190623193,0.72,126.96,126.93,21.78424914]
[1767190626403,0.7,126.98,126.94,7.38424914]
[1767190626578,0.7,126.98,126.93,22.2783392]
[1767190626775,0.7,126.98,126.94,3.10178989]
[1767190626978,0.7,126.98,126.93,22.2783392]
[1767190627177,0.7,126.98,126.94,3.10178989]
[1767190627894,0.7,126.97,126.93,14.4]
[1767190628293,0.7,126.97,126.93,25.37981687]
[1767190628492,0.7,126.97,126.94,3.10178989]
[1767190628672,3.10178989,126.99,126.94,3.10178989]
[1767190628876,0.69,126.98,126.95,3.10178989]
[1767190630080,0.69,126.98,126.94,7.87743138]
[1767190630303,0.69,126.98,126.95,3.10178989]
[1767190630604,0.69,126.98,126.94,17.48178989]
[1767190631478,3.79178989,126.98,126.94,17.48178989]
[1767190631679,0.69,126.98,126.94,17.48178989]
[1767190632310,0.69,126.98,126.94,14.38]
[1767190632492,0.69,126.98,126.94,17.48178989]
[1767190633491,0.69,126.98,126.95,3.10178989]
[1767190634684,19.67996843,127.04,126.95,3.10178989]
[1767190634685,0.1,127.07,126.99,8.35013837]
[1767190634886,3.10178989,127.12,127.06,3.10178989]
[1767190635096,6.67962163,127.16,127.08,3.39140567]
[1767190635097,3.10178989,127.11,127.08,3.39140567]
[1767190635277,0.69,127.08,127.03,15.06]
[1767190635682,3.10178989,127.07,127.03,15.06]
[1767190636310,3.79178989,127.07,127.02,15.06]
[1767190636510,0.69,127.07,127.02,15.06]
[1767190636694,8.06663717,127.07,127.02,15.06]
[1767190637406,7.37663717,127.06,127.02,15.06]
[1767190637811,0.69,127.07,127.02,22.93264506]
[1767190638007,7.37663717,127.06,127.02,22.93264506]
[1767190638306,7.37663717,127.06,127.02,15.06]
[1767190638810,8.08663717,127.05,126.99,0.71]
[1767190639109,7.37663717,127.03,127.0,15.09]
[1767190639413,7.37663717,127.03,127.0,14.38]
[1767190640482,7.87118818,127.05,126.97,15.07]
[1767190640483,7.37663717,127.01,126.97,15.07]
[1767190640706,7.37663717,127.01,126.95,7.87675422]
[1767190640888,8.06663717,127.0,126.96,14.38]
[1767190641389,0.69,127.0,126.96,14.38]
[1767190641589,8.06663717,127.0,126.96,15.07]
[1767190641901,0.69,127.0,126.96,15.07]
[1767190642091,8.06663717,127.0,126.96,15.07]
[1767190643215,7.37663717,126.99,126.96,15.07]
[1767190643407,8.06663717,127.0,126.96,15.07]
[1767190643610,8.06663717,127.0,126.96,0.69]
[1767190645017,7.37663717,126.99,126.96,0.69]
[1767190646792,7.37663717,126.99,126.94,29.63416964]
[1767190646999,7.37663717,126.99,126.94,22.94753247]
[1767190647000,0.69,126.98,126.94,22.94753247]
[1767190647594,8.06663717,126.99,126.94,22.94753247]
[1767190647795,8.06663717,126.99,126.94,29.63416964]
[1767190647991,8.06663717,126.99,126.95,0.69]
[1767190648222,0.69,126.99,126.95,0.69]
[1767190648520,8.06663717,126.99,126.95,0.69]
[1767190651127,7.37663717,126.98,126.95,0.69]
[1767190651418,8.06663717,126.98,126.94,15.07]
[1767190653908,0.69,126.98,126.94,15.07]
[1767190654112,8.06663717,126.98,126.94,15.07]
[1767190655904,8.06663717,126.98,126.95,0.69]
[1767190656105,7.37663717,126.98,126.95,0.69]
[1767190658628,3.10221809,126.98,126.95,0.69]
[1767190659301,3.10221809,126.97,126.95,0.69]
[1767190659608,3.10221809,126.96,126.93,0.69]
[1767190660128,0.69,126.97,126.93,0.69]
[1767190660428,3.10221809,126.96,126.93,0.69]
[1767190661926,3.79221809,126.96,126.93,0.69]
[1767190662432,0.69,126.98,126.93,0.69]
[1767190662609,3.79221809,126.97,126.93,3.79221809]
[1767190662929,3.79221809,126.97,126.93,0.69]
[1767190663228,0.69,126.97,126.93,3.79221809]
[1767190663631,3.79221809,126.97,126.93,3.79221809]
[1767190663815,3.79221809,126.97,126.93,0.69]
[1767190665825,34.06573694,127.0,126.94,0.69]
[1767190665826,0.69,127.0,126.94,0.69]
[1767190666031,3.79221809,126.98,126.94,0.69]
[1767190666207,3.79221809,126.97,126.94,0.69]
[1767190666728,0.69,127.02,126.97,0.69]
[1767190666925,0.69,127.02,126.98,3.79221809]
[1767190667102,3.79221809,127.02,126.98,0.69]
[1767190667305,0.69,127.02,126.98,3.79221809]
[1767190667509,3.79221809,127.02,126.98,3.79221809]
[1767190668317,3.10221809,127.02,126.98,3.10221809]
[1767190668539,3.10221809,127.02,126.99,0.69]
[1767190670005,0.69,127.03,126.99,0.69]
[1767190670407,3.79221809,127.03,126.99,0.69]
[1767190671751,0.69,127.03,126.99,0.69]
[1767190672029,3.10221809,127.02,126.99,0.69]
[1767190672234,3.10221809,127.01,126.97,3.79221809]
[1767190672748,3.79221809,127.02,126.98,3.10221809]
[1767190672918,3.79221809,127.02,126.97,0.69]
[1767190673112,3.79221809,127.02,126.98,3.10221809]
[1767190673311,3.79221809,127.02,126.98,3.79221809]
[1767190674735,0.69,127.02,126.98,3.79221809]
[1767190675035,3.79221809,127.02,126.98,3.79221809]
[1767190675240,0.69,127.02,126.98,3.79221809]
[1767190675627,3.79221809,127.02,126.98,3.79221809]
[1767190676239,3.79221809,127.02,126.98,0.69]
[1767190676442,3.79221809,127.02,126.98,3.79221809]
[1767190676748,3.10221809,127.01,126.98,0.69]
[1767190677745,0.69,126.98,126.94,0.69]
[1767190678041,3.79221809,126.97,126.93,0.69]
[1767190678337,3.10221809,126.96,126.93,0.69]
[1767190679042,0.69,126.97,126.93,0.69]
[1767190679210,3.10221809,126.96,126.93,0.69]
[1767190679410,3.79221809,126.97,126.93,0.69]
[1767190680010,0.69,126.97,126.93,0.69]
[1767190680211,3.79221809,126.97,126.93,0.69]
[1767190680637,5.53832187,126.97,126.93,0.69]
[1767190681038,0.69,126.97,126.93,5.53832187]
[1767190681240,5.53832187,126.97,126.93,5.53832187]
[1767190681425,14.38,127.0,126.96,5.53832187]
[1767190681426,0.69,127.0,126.96,5.53832187]
[1767190681744,5.53832187,127.01,126.97,5.53832187]
[1767190681942,127.52726293,127.04,126.98,4.84832187]
[1767190681943,0.69,127.03,126.98,4.84832187]
[1767190682148,5.88136596,127.02,126.99,5.53832187]
[1767190682335,4.84832187,127.02,126.99,0.69]
[1767190682842,4.84832187,127.01,126.97,5.53832187]